bitfinex-derivatives/quotes_SOLF0:USTF0_20240830
["timestamp","ask_amount","ask_price","bid_price","bid_amount"]
[1724991937060,0.05493948,139.46,139.43,15.44]
[1724991937546,0.05493948,139.46,139.43,10.98]
[1724991937751,0.05493948,139.46,139.43,15.44]
[1724991938359,0.05493948,139.46,139.45,14.5653]
[1724991938557,10.98,139.54,139.45,54.9]
[1724991938852,10.98,139.54,139.43,4.46]
[1724991938853,10.98,139.54,139.48,10.98]
[1724991939453,3.5835,139.52,139.47,14.5646]
[1724991939658,3.63180128,139.52,139.5,0.04716261]
[1724991940561,0.04830128,139.52,139.5,0.04716261]
[1724991941354,14.61180128,139.52,139.5,0.04716261]
[1724991942453,3.63180128,139.52,139.5,0.04716261]
[1724991947062,0.04830128,139.52,139.5,0.04716261]
[1724991950064,3.63180128,139.52,139.5,0.04716261]
[1724991952772,0.04830128,139.52,139.5,0.04716261]
[1724991956973,3.63180128,139.52,139.5,0.04716261]
[1724991957766,14.61180128,139.52,139.5,0.04716261]
[1724991959073,11.02830128,139.52,139.5,0.04716261]
[1724991959373,10.98,139.51,139.43,4.46]
[1724991959573,10.98,139.48,139.43,4.46]
[1724991960176,0.05010328,139.47,139.44,0.02273408]
[1724991960573,0.05010328,139.47,139.45,3.5851]
[1724991960967,0.05010328,139.47,139.45,7.13435788]
[1724991961367,0.05010328,139.47,139.46,3.585]
[1724991962573,0.05010328,139.47,139.45,3.5852]
[1724991964480,0.05010328,139.47,139.44,14.58823408]
[1724991965081,0.05010328,139.47,139.44,11.00273408]
[1724991965280,0.05010328,139.47,139.45,10.98]
[1724991965674,0.05010328,139.47,139.46,3.585]
[1724991970384,0.05010328,139.47,139.46,14.565]
[1724991972980,0.05010328,139.47,139.46,3.585]
[1724991973283,0.05010328,139.47,139.45,3.5852]
[1724991973481,0.05010328,139.47,139.44,0.02273408]
[1724991974079,0.05010328,139.47,139.44,3.60823408]
[1724991981190,0.05010328,139.47,139.44,0.02273408]
[1724991983689,14.61490328,139.47,139.44,0.02273408]
[1724991984097,2.7181,139.46,139.44,0.02273408]
[1724991984283,6.3033,139.46,139.44,0.02273408]
[1724991986296,1.3572,139.45,139.42,3.586]
[1724991988385,1.3572,139.45,139.41,3.5862]
[1724991988589,0.04530773,139.44,139.41,3.5862]
[1724991988894,0.04530773,139.44,139.42,3.5861]
[1724991989592,0.04530773,139.44,139.43,10.98]
[1724991991394,0.04530773,139.44,139.42,3.5861]
[1724991991593,0.04530773,139.44,139.42,14.5661]
[1724991994689,0.04530773,139.44,139.43,3.5858]
[1724992004706,0.04530773,139.44,139.42,14.566]
[1724992010912,0.04530773,139.44,139.43,3.5858]
[1724992016139,0.04530773,139.44,139.42,14.566]
[1724992017028,0.04530773,139.44,139.42,3.586]
[1724992017533,0.04530773,139.44,139.41,8.0462]
[1724992017831,0.04530773,139.44,139.41,3.5862]
[1724992021036,0.04530773,139.44,139.4,3.5865]
[1724992021340,3.63090773,139.44,139.39,10.98]
[1724992022146,3.63090773,139.44,139.39,14.5667]
[1724992022429,3.63090773,139.44,139.39,3.5867]
[1724992022632,3.63090773,139.44,139.39,14.5667]
[1724992024430,3.63090773,139.44,139.4,14.5665]
[1724992024728,0.04530773,139.44,139.4,10.98]
[1724992026544,0.04530773,139.44,139.41,3.5863]
[1724992028628,0.04530773,139.44,139.42,14.5661]
[1724992029229,0.04530773,139.44,139.42,10.98]
[1724992029642,0.04530773,139.44,139.41,3.5862]
[1724992030145,3.63090773,139.44,139.4,14.5665]
[1724992031236,3.63090773,139.44,139.31,43.92]
[1724992031237,0.04530773,139.44,139.31,43.92]
[1724992031443,0.05426916,139.4,139.38,10.98]
[1724992031736,0.05239798,139.4,139.39,10.98]
[1724992032042,0.05239798,139.4,139.39,14.5667]
[1724992033934,0.05239798,139.4,139.29,12.72784807]
[1724992033935,0.05239798,139.4,139.38,4.44]
[1724992034141,0.05239798,139.4,139.38,10.98]
[1724992034442,0.05239798,139.4,139.39,10.98]
[1724992035446,0.05239798,139.4,139.39,14.5668]
[1724992036747,0.05239798,139.4,139.39,10.98]
[1724992039438,0.05239798,139.4,139.39,14.5668]
[1724992040440,0.05239798,139.4,139.39,10.98]
[1724992042253,0.05239798,139.4,139.3,0.4707]
[1724992042254,0.05239798,139.4,139.37,3.5872]
[1724992043156,0.05239798,139.4,139.33,7.95973919]
[1724992043157,0.05239798,139.4,139.38,14.5671]
[1724992043351,0.05239798,139.4,139.39,10.98]
[1724992044243,0.05239798,139.4,139.39,14.5668]
[1724992047250,0.05239798,139.4,139.39,3.5868]
[1724992047647,0.05239798,139.4,139.39,14.5668]
[1724992050858,0.05239798,139.4,139.39,3.5868]
[1724992055660,0.05239798,139.4,139.39,10.98]
[1724992056256,0.05239798,139.4,139.39,14.5668]
[1724992057059,0.05239798,139.4,139.39,3.5868]
[1724992057257,0.05239798,139.4,139.3,0.4707]
[1724992057559,0.04654616,139.36,139.34,10.98]
[1724992057753,0.04654616,139.36,139.34,14.59625071]
[1724992058357,0.04654616,139.36,139.35,3.5879]
[1724992060965,0.04654616,139.36,139.33,3.5883]
[1724992061161,0.04654616,139.36,139.33,8.0283]
[1724992061866,0.04654616,139.36,139.33,3.5883]
[1724992063362,0.04654616,139.36,139.32,19.0085]
[1724992064463,0.04654616,139.36,139.31,22.54753742]
[1724992064659,0.04654616,139.36,139.31,19.0089]
[1724992065065,0.04654616,139.36,139.3,3.5891]
[1724992066267,3.5879,139.35,139.3,3.5891]
[1724992067168,10.98,139.35,139.28,3.5894]
[1724992067364,0.05429824,139.33,139.28,10.98]
[1724992067765,0.05429824,139.33,139.3,10.98]
[1724992068866,0.05429824,139.33,139.31,3.5888]
[1724992069566,0.05429824,139.33,139.3,3.5891]
[1724992069960,0.05429824,139.33,139.29,3.5892]
[1724992073171,0.05429824,139.33,139.27,97.18377917]
[1724992073377,0.05429824,139.33,139.27,92.74377917]
[1724992073676,0.05429824,139.33,139.27,108.16377917]
[1724992074271,3.64269824,139.33,139.28,3.5897]
[1724992077583,0.05429824,139.33,139.27,103.72377917]
[1724992077775,0.05429824,139.33,139.29,3.5894]
[1724992078179,1.41679824,139.33,139.29,3.5894]
[1724992079082,10.98,139.32,139.28,3.5896]
[1724992084298,0.05429824,139.33,139.29,10.98]
[1724992084487,0.05429824,139.33,139.31,10.98]
[1724992084686,0.05429824,139.33,139.31,14.58439083]
[1724992084992,0.05429824,139.33,139.31,18.17299083]
[1724992085793,0.05429824,139.33,139.32,3.5886]
[1724992094105,0.05429824,139.33,139.31,14.5688]
[1724992097108,0.05429824,139.33,139.32,3.5886]
[1724992097715,0.05429824,139.33,139.32,14.5686]
[1724992097904,3.9522,139.42,139.37,10.98]
[1724992098512,3.9522,139.42,139.36,15.42]
[1724992098902,0.05018507,139.4,139.38,3.63521803]
[1724992101610,0.05018507,139.4,139.39,3.5868]
[1724992121330,0.05018507,139.4,139.39,18.17808792]
[1724992125440,3.5851,139.46,139.41,3.5862]
[1724992125641,2.6381,139.48,139.41,10.98]
[1724992125840,6.2227,139.48,139.43,14.5656]
[1724992126233,13.6181,139.48,139.42,4.44]
[1724992126439,0.04704982,139.46,139.44,0.04962457]
[1724992129935,3.63204982,139.46,139.44,0.04962457]
[1724992130440,3.5853,139.45,139.44,0.04962457]
[1724992130645,10.98,139.45,139.31,54.60962091]
[1724992130943,2.6381,139.48,139.4,10.98]
[1724992131142,10.98,139.47,139.41,10.98]
[1724992131543,3.63461712,139.45,139.43,0.05294212]
[1724992135241,3.5855,139.44,139.43,0.05294212]
[1724992139847,3.5855,139.44,139.4,3.5866]
[1724992140354,3.5858,139.43,139.39,15.42]
[1724992141354,3.5858,139.43,139.39,19.0067]
[1724992143554,3.5858,139.43,139.39,14.5667]
[1724992145459,3.5863,139.41,139.38,4.44]
[1724992145656,0.05133947,139.41,139.37,10.98]
[1724992145865,0.0463442,139.4,139.37,10.98]
[1724992146358,0.0463442,139.4,139.37,14.5672]
[1724992147255,3.6330442,139.4,139.35,3.5878]
[1724992147474,0.0463442,139.4,139.38,10.98]
[1724992156166,0.0463442,139.4,139.38,14.5671]
[1724992157469,0.0463442,139.4,139.39,10.98]
[1724992159465,0.0463442,139.4,139.38,3.5871]
[1724992164173,0.0463442,139.4,139.37,10.98]
[1724992165374,3.6329442,139.4,139.37,10.98]
[1724992166377,0.0463442,139.4,139.35,4.44]
[1724992166574,0.0463442,139.4,139.34,15.42]
[1724992166575,11.0263442,139.4,139.34,15.42]
[1724992166875,0.04543522,139.38,139.32,15.42]
[1724992167072,1.41123522,139.38,139.32,10.98]
[1724992167474,2.79033522,139.38,139.32,10.98]
[1724992167681,13.77033522,139.38,139.31,10.98]
[1724992167980,0.04600455,139.36,139.31,10.98]
[1724992168673,3.5884,139.33,139.31,10.98]
[1724992172471,3.5884,139.33,139.29,8.0294]
[1724992172669,0.05287945,139.32,139.3,10.98]
[1724992175677,0.05287945,139.32,139.29,8.0294]
[1724992175883,0.05287945,139.32,139.3,10.98]
[1724992178484,0.05287945,139.32,139.29,4.44]
[1724992178783,0.05287945,139.32,139.29,15.42]
[1724992182089,0.05287945,139.32,139.29,10.98]
[1724992182590,0.05287945,139.32,139.29,14.5694]
[1724992182790,0.05287945,139.32,139.3,10.98]
[1724992185288,3.64157945,139.32,139.28,10.98]
[1724992185785,3.5894,139.29,139.24,233.8745976]
[1724992185989,11.03287945,139.32,139.25,10.98]
[1724992185990,0.04984888,139.28,139.25,10.98]
[1724992186388,0.04984888,139.28,139.25,3.5903]
[1724992186592,0.04984888,139.28,139.24,96.43025951]
[1724992186593,0.04984888,139.28,139.26,10.98]
[1724992187489,0.04984888,139.28,139.24,96.43025951]
[1724992187693,0.04984888,139.28,139.25,10.98]
[1724992188185,3.63964888,139.28,139.25,15.42]
[1724992189586,3.5899,139.27,139.25,10.98]
[1724992190587,3.5899,139.27,139.24,100.87025951]
[1724992190792,3.5899,139.27,139.24,111.85025951]
[1724992195093,3.5899,139.27,139.24,100.87025951]
[1724992195290,3.5899,139.27,139.24,111.85025951]
[1724992199189,0.04984888,139.28,139.24,115.44065951]
[1724992199390,0.04984888,139.28,139.27,10.98]
[1724992200393,2.6848,139.33,139.27,10.98]
[1724992200597,3.5886,139.32,139.3,10.98]
[1724992200792,2.6848,139.33,139.3,10.98]
[1724992201101,2.6848,139.33,139.28,15.42]
[1724992201289,0.05419808,139.32,139.29,0.05306149]
[1724992202300,3.5889,139.31,139.29,0.05306149]
[1724992202605,0.05419808,139.32,139.29,0.05306149]
[1724992203000,3.5891,139.31,139.29,0.05306149]
[1724992203697,3.64289808,139.32,139.3,10.98]
[1724992204403,0.05419808,139.32,139.3,10.98]
[1724992205692,3.64299808,139.32,139.29,0.05306149]
[1724992206296,3.5889,139.31,139.29,0.05306149]
[1724992210204,3.5891,139.3,139.29,0.05306149]
[1724992218816,10.98,139.3,139.25,10.98]
[1724992219622,3.63840119,139.29,139.25,10.98]
[1724992220019,0.04880119,139.29,139.25,10.98]
[1724992221322,3.5897,139.28,139.25,10.98]
[1724992223420,3.63820119,139.29,139.25,10.98]
[1724992223620,0.04880119,139.29,139.25,10.98]
[1724992223822,0.04880119,139.29,139.27,10.98]
[1724992224224,0.04880119,139.29,139.27,14.61629366]
[1724992225435,0.04880119,139.29,139.26,15.42]
[1724992226034,0.04880119,139.29,139.26,19.0102]
[1724992226335,0.04880119,139.29,139.26,4.44]
[1724992226533,0.04880119,139.29,139.25,22.54332257]
[1724992228531,0.04880119,139.29,139.25,18.95292257]
[1724992228739,0.04880119,139.29,139.28,10.98]
[1724992230825,0.04880119,139.29,139.27,3.5897]
[1724992230826,0.04880119,139.29,139.27,10.98]
[1724992238441,7.0874,139.37,139.3,0.04862721]
[1724992238442,1.302,139.37,139.3,0.04862721]
[1724992238643,20.10066421,139.4,139.34,10.98]
[1724992238941,23.68746421,139.4,139.35,3.63841848]
[1724992239143,31.08066421,139.4,139.34,14.5679]
[1724992239441,0.05241109,139.38,139.36,0.04858469]
[1724992247051,0.05241109,139.38,139.37,10.98]
[1724992247753,0.05241109,139.38,139.37,13.94040302]
[1724992248452,0.05241109,139.38,139.37,10.98]
[1724992248856,0.05241109,139.38,139.37,13.94020966]
[1724992249551,0.05241109,139.38,139.37,10.98]
[1724992250852,0.05241109,139.38,139.36,11.02858469]
[1724992254462,0.05241109,139.38,139.36,14.61618469]
[1724992255851,0.05241109,139.38,139.37,10.98]
[1724992257159,0.05241109,139.38,139.36,11.02858469]
[1724992257560,3.63951109,139.38,139.36,0.04858469]
[1724992259161,3.5873,139.37,139.36,0.04858469]
[1724992261564,2.6479,139.37,139.33,2.95919978]
[1724992261863,10.98,139.36,139.29,15.42]
[1724992262064,15.42,139.36,139.3,8.65236939]
[1724992262364,15.42,139.36,139.3,5.69197305]
[1724992262669,3.5884,139.33,139.3,5.69197305]
[1724992262960,0.04535805,139.34,139.28,10.98]
[1724992263169,3.5886,139.32,139.29,5.69068256]
[1724992263366,0.04535805,139.34,139.29,5.69068256]
[1724992263564,0.04535805,139.34,139.29,5.69057772]
[1724992263759,0.04535805,139.34,139.28,10.98]
[1724992264356,0.04535805,139.34,139.28,14.5696]
[1724992264357,3.5884,139.33,139.28,14.5696]
[1724992265959,3.5887,139.32,139.27,3.5899]
[1724992266159,0.04819854,139.31,139.28,10.98]
[1724992266363,0.04819854,139.31,139.27,3.5899]
[1724992266559,0.04819854,139.31,139.28,10.98]
[1724992267362,0.04819854,139.31,139.29,5.69481947]
[1724992267565,0.04819854,139.31,139.3,10.98]
[1724992273470,0.04819854,139.31,139.24,0.2673]
[1724992273672,0.04819854,139.31,139.27,10.98]
[1724992273864,0.04819854,139.31,139.28,2.96352024]
[1724992274268,3.5892,139.3,139.28,2.96352024]
[1724992277474,3.63709854,139.31,139.28,2.96352024]
[1724992277665,0.04819854,139.31,139.28,19.64200693]
[1724992277870,0.04819854,139.31,139.3,10.98]
[1724992281169,0.04819854,139.31,139.28,14.5695]
[1724992281871,0.04819854,139.31,139.27,3.5899]
[1724992281872,3.63709854,139.31,139.27,3.5899]
[1724992282071,3.63709854,139.31,139.27,14.5699]
[1724992287770,3.63709854,139.31,139.28,2.96361707]
[1724992292376,3.63709854,139.31,139.27,14.5699]
[1724992292778,3.63709854,139.31,139.28,2.96450147]
[1724992295580,0.04819854,139.31,139.28,6.55420147]
[1724992295780,0.04819854,139.31,139.25,8.00650635]
[1724992295781,0.04819854,139.31,139.3,10.98]
[1724992296178,0.04819854,139.31,139.3,13.94578762]
[1724992297290,0.04819854,139.31,139.3,17.53488762]
[1724992297981,0.04819854,139.31,139.29,3.5892]
[1724992298181,0.04819854,139.31,139.3,2.96642866]
[1724992298388,0.04819854,139.31,139.29,14.5692]
[1724992299385,0.04819854,139.31,139.3,2.96637848]
[1724992299988,0.04819854,139.31,139.29,14.5692]
[1724992300492,0.04819854,139.31,139.3,2.96625299]
[1724992300682,0.04819854,139.31,139.29,14.5692]
[1724992300883,0.04819854,139.31,139.3,2.96625396]
[1724992301888,0.04819854,139.31,139.29,14.5692]
[1724992302084,0.04819854,139.31,139.3,2.96656879]
[1724992302284,0.04819854,139.31,139.29,14.5692]
[1724992302485,0.04819854,139.31,139.3,2.9663783]
[1724992302980,0.04819854,139.31,139.29,14.5692]
[1724992303490,0.04819854,139.31,139.3,2.96607943]
[1724992305195,0.04819854,139.31,139.29,14.5692]
[1724992305588,0.04819854,139.31,139.3,2.96447691]
[1724992305896,0.04819854,139.31,139.27,10.98]
[1724992306081,0.04819854,139.31,139.28,8.66840082]
[1724992306285,0.04819854,139.31,139.29,2.96543834]
[1724992306783,0.04819854,139.31,139.27,10.98]
[1724992306784,0.04819854,139.31,139.28,8.66643733]
[1724992306981,0.04819854,139.31,139.29,2.96543834]
[1724992308590,0.04819854,139.31,139.28,3.5896]
[1724992308786,0.04819854,139.31,139.29,2.96457185]
[1724992308987,0.04819854,139.31,139.29,6.55397185]
[1724992309187,0.04819854,139.31,139.3,13.94457185]
[1724992309588,0.04819854,139.31,139.3,19.64334255]
[1724992310289,0.04819854,139.31,139.3,23.23244255]
[1724992317102,43.92,139.46,139.3,19.64334255]
[1724992317404,43.92,139.46,139.34,10.98]
[1724992317405,71.23692191,139.4,139.34,10.98]
[1724992317604,75.65692191,139.4,139.34,10.98]
[1724992318195,75.65692191,139.4,139.35,0.04534854]
[1724992318196,0.04574471,139.38,139.35,0.04534854]
[1724992318401,3.5874,139.37,139.35,0.04534854]
[1724992318800,0.04574471,139.38,139.36,3.5874]
[1724992319306,0.04574471,139.38,139.35,11.02534854]
[1724992319500,0.04574471,139.38,139.35,14.61314854]
[1724992320515,0.04574471,139.38,139.35,0.04534854]
[1724992320714,10.98,139.37,139.35,0.04534854]
[1724992321008,12.2519,139.37,139.35,0.04534854]
[1724992322309,3.5876,139.36,139.35,0.04534854]
[1724992328124,3.5881,139.35,139.32,8.6525233]
[1724992328319,3.5881,139.35,139.33,8.65193718]
[1724992328516,3.5881,139.35,139.34,2.95969233]
[1724992330722,3.5881,139.35,139.31,14.5688]
[1724992330723,3.5881,139.35,139.31,3.5888]
[1724992330922,3.5881,139.35,139.32,8.65157299]
[1724992331223,3.5881,139.35,139.33,8.65157299]
[1724992331428,3.5881,139.35,139.34,2.95958258]
[1724992332725,3.5881,139.35,139.34,8.65062223]
[1724992332926,3.5881,139.35,139.34,2.95958258]
[1724992334120,0.05338238,139.36,139.34,2.95958258]
[1724992334321,0.05338238,139.36,139.33,3.5884]
[1724992334528,0.05338238,139.36,139.34,2.95858593]
[1724992334720,0.05338238,139.36,139.33,3.5884]
[1724992335022,3.64118238,139.36,139.34,2.9588735]
[1724992335230,3.64118238,139.36,139.33,5.6906677]
[1724992335529,3.64118238,139.36,139.34,2.95878871]
[1724992335730,3.64118238,139.36,139.33,5.69051472]
[1724992335934,3.64118238,139.36,139.34,2.95878867]
[1724992336135,3.64118238,139.36,139.35,2.95878867]
[1724992337229,3.64118238,139.36,139.33,3.5884]
[1724992337230,0.05338238,139.36,139.34,10.98]
[1724992337428,0.05338238,139.36,139.35,2.95806734]
[1724992338430,3.64098238,139.36,139.35,2.95806734]
[1724992340736,3.64098238,139.36,139.35,2.95845083]
[1724992340933,3.64098238,139.36,139.34,10.98]
[1724992341333,3.64098238,139.36,139.35,2.95834919]
[1724992344038,3.64098238,139.36,139.34,10.98]
[1724992344232,3.64098238,139.36,139.35,2.9581489]
[1724992347640,3.64098238,139.36,139.35,2.95816405]
[1724992347841,3.64098238,139.36,139.34,5.68935361]
[1724992348039,3.64098238,139.36,139.35,2.95813442]
[1724992351036,3.64098238,139.36,139.33,5.68930114]
[1724992351238,3.64098238,139.36,139.34,2.95810712]
[1724992351439,3.64098238,139.36,139.35,2.95810712]
[1724992354336,3.588,139.35,139.34,5.68936729]
[1724992354739,3.588,139.35,139.34,2.95814202]
[1724992354943,3.588,139.35,139.34,8.64750931]
[1724992355146,3.588,139.35,139.34,2.95814202]
[1724992357248,0.05338238,139.36,139.3,14.5691]
[1724992357249,3.5882,139.34,139.3,14.5691]
[1724992357438,3.5882,139.34,139.31,8.64845212]
[1724992357641,3.5882,139.34,139.32,8.64845212]
[1724992357942,3.5882,139.34,139.33,8.64845212]
[1724992360856,3.5882,139.34,139.3,14.5691]
[1724992361049,3.5882,139.34,139.33,8.65634387]
[1724992364356,3.5882,139.34,139.33,8.66239925]
[1724992368049,3.5882,139.34,139.33,2.96324439]
[1724992368962,3.5887,139.32,139.29,2.96771656]
[1724992369151,3.64118115,139.32,139.3,2.96771656]
[1724992369459,3.64118115,139.32,139.31,2.96771656]
[1724992370957,3.64118115,139.32,139.31,2.96873721]
[1724992373657,0.05248115,139.32,139.31,13.94873721]
[1724992373855,1.3241,139.39,139.31,57.86873721]
[1724992374156,3.5865,139.41,139.38,10.98]
[1724992374662,3.5865,139.41,139.39,2.96199203]
[1724992374851,3.63522334,139.41,139.39,0.05487269]
[1724992375252,0.04872334,139.41,139.39,0.05487269]
[1724992375657,0.04872334,139.41,139.39,11.03487269]
[1724992375856,0.04872334,139.41,139.4,2.96146766]
[1724992379062,0.04872334,139.41,139.4,13.94146766]
[1724992379261,1.3491,139.47,139.4,13.94146766]
[1724992379564,16.7491,139.47,139.4,10.98]
[1724992380260,11.03159088,139.45,139.42,0.04642851]
[1724992380652,10.98,139.43,139.42,0.04642851]
[1724992380857,14.5658,139.43,139.42,0.04642851]
[1724992381152,15.4,139.43,139.38,2.96072689]
[1724992381465,3.5866,139.4,139.39,2.96072689]
[1724992381758,4.42,139.43,139.37,2.96072689]
[1724992381964,4.42,139.43,139.38,2.96072689]
[1724992382157,0.051617,139.42,139.39,0.05168529]
[1724992382358,3.637917,139.42,139.39,0.05168529]
[1724992382558,0.051617,139.42,139.39,0.05168529]
[1724992384459,3.5864,139.41,139.39,0.05168529]
[1724992385263,0.051617,139.42,139.39,0.05168529]
[1724992385564,0.051617,139.42,139.39,3.01275637]
[1724992386363,0.051617,139.42,139.41,10.98]
[1724992387174,0.051617,139.42,139.41,14.5663]
[1724992388167,3.585,139.46,139.42,3.5859]
[1724992388365,16.7952,139.49,139.43,10.98]
[1724992388556,12.3752,139.49,139.43,10.98]
[1724992389161,12.3752,139.49,139.45,0.05066645]
[1724992389162,0.05090681,139.47,139.45,0.05066645]
[1724992389464,3.63570681,139.47,139.45,0.05066645]
[1724992389655,0.05090681,139.47,139.45,0.05066645]
[1724992390463,3.63570681,139.47,139.45,0.05066645]
[1724992392463,0.05090681,139.47,139.45,14.61586645]
[1724992392756,0.05090681,139.47,139.46,10.98]
[1724992393165,335.0,139.54,139.46,10.98]
[1724992393166,15.4,139.54,139.46,10.98]
[1724992393366,15.4,139.54,139.48,10.98]
[1724992393562,10.98,139.53,139.47,10.98]
[1724992393872,15.4,139.53,139.47,10.98]
[1724992394268,3.584,139.5,139.49,0.05307073]
[1724992398468,14.564,139.5,139.49,0.05307073]
[1724992402681,3.584,139.5,139.49,0.05307073]
[1724992403788,0.0488533,139.51,139.49,0.05307073]
[1724992404180,0.0488533,139.51,139.49,11.03307073]
[1724992404381,0.0488533,139.51,139.5,10.98]
[1724992404683,0.0488533,139.51,139.49,0.05307073]
[1724992406393,0.0488533,139.51,139.49,3.63737073]
[1724992407081,4.0653,139.56,139.5,10.98]
[1724992407082,1.3969,139.56,139.5,10.98]
[1724992407293,1.3969,139.56,139.55,10.98]
[1724992407480,4.42,139.59,139.55,10.98]
[1724992407792,3.5823,139.57,139.55,10.98]
[1724992408285,3.5823,139.57,139.55,11.03249343]
[1724992408286,3.63667942,139.57,139.55,11.03249343]
[1724992413394,0.05437942,139.57,139.56,10.98]
[1724992427804,3.63657942,139.57,139.56,10.98]
[1724992431104,3.63657942,139.57,139.55,0.05249343]
[1724992431510,3.63657942,139.57,139.56,10.98]
[1724992433005,3.5825,139.56,139.55,0.05249343]
[1724992433311,3.5825,139.56,139.55,11.03249343]
[1724992433813,0.05437942,139.57,139.55,11.03249343]
[1724992434015,0.05437942,139.57,139.56,10.98]
[1724992437408,3.63657942,139.57,139.56,10.98]
[1724992440807,0.05437942,139.57,139.56,10.98]
[1724992442113,2.6225,139.63,139.56,10.98]
[1724992442114,3.5813,139.61,139.56,10.98]
[1724992442308,3.5813,139.61,139.6,10.98]
[1724992442509,224.0,139.7,139.6,10.98]
[1724992442811,1.3187,139.68,139.63,10.98]
[1724992443018,0.05409758,139.67,139.64,0.04679815]
[1724992443714,3.5802,139.65,139.64,0.04679815]
[1724992445515,3.5809,139.62,139.6,10.98]
[1724992446412,3.5812,139.61,139.6,0.04993272]
[1724992447921,0.05381468,139.62,139.6,0.04993272]
[1724992447922,3.63481468,139.62,139.6,11.02993272]
[1724992452522,3.5812,139.61,139.6,11.02993272]
[1724992454228,3.5812,139.61,139.6,0.04993272]
[1724992456332,0.05381468,139.62,139.6,0.04993272]
[1724992458431,3.5812,139.61,139.6,0.04993272]
[1724992458632,0.05381468,139.62,139.6,0.04993272]
[1724992459336,0.05381468,139.62,139.6,11.02993272]
[1724992460332,3.63471468,139.62,139.6,11.02993272]
[1724992464639,7.53664544,210.44,139.61,10.98]
[1724992464640,14.61948413,139.7,139.61,10.98]
[1724992464840,1.4051,139.69,139.64,10.98]
[1724992465132,1.4051,139.69,139.63,10.98]
[1724992465335,12.3851,139.69,139.63,10.98]
[1724992465631,4.4,139.68,139.61,14.5612]
[1724992465936,0.05276129,139.67,139.63,0.05466752]
[1724992466134,0.05276129,139.67,139.63,11.03466752]
[1724992466337,0.05276129,139.67,139.64,10.98]
[1724992467341,3.63256129,139.67,139.64,10.98]
[1724992469229,3.63256129,139.67,139.64,3.5804]
[1724992469436,3.63256129,139.67,139.65,10.98]
[1724992469437,0.05276129,139.67,139.65,10.98]
[1724992471634,0.05276129,139.67,139.64,4.4]
[1724992471841,0.05276129,139.67,139.66,10.98]
[1724992474238,0.05276129,139.67,139.64,4.4]
[1724992474444,0.05276129,139.67,139.66,10.98]
[1724992477237,0.05276129,139.67,139.64,3.5804]
[1724992477443,0.05276129,139.67,139.64,14.5604]
[1724992478337,3.63246129,139.67,139.64,10.98]
[1724992480948,3.63246129,139.67,139.66,10.98]
[1724992481651,3.63246129,139.67,139.63,11.68484506]
[1724992481851,3.63246129,139.67,139.66,10.98]
[1724992486048,0.05276129,139.67,139.66,10.98]
[1724992486852,3.63236129,139.67,139.66,10.98]
[1724992488444,0.05276129,139.67,139.63,11.03466752]
[1724992488649,0.05276129,139.67,139.63,0.05466752]
[1724992489650,3.5803,139.65,139.63,0.05466752]
[1724992490448,3.5803,139.65,139.64,10.98]
[1724992494557,3.5804,139.64,139.63,0.05466752]
[1724992504073,3.5811,139.62,139.58,3.5819]
[1724992504262,3.5811,139.62,139.59,10.98]
[1724992505168,3.62917581,139.62,139.59,11.02900245]
[1724992507266,3.5812,139.61,139.59,0.04900245]
[1724992508169,3.5812,139.61,139.59,2.99367717]
[1724992509066,0.04807581,139.62,139.59,2.99367717]
[1724992509067,3.5814,139.6,139.59,2.99367717]
[1724992509765,3.5814,139.6,139.59,0.04900245]
[1724992510467,3.5814,139.6,139.59,2.99368641]
[1724992510668,3.5814,139.6,139.59,0.04900245]
[1724992516162,4.9467,139.6,139.59,0.04900245]
[1724992516362,3.5823,139.57,139.55,84.65576303]
[1724992516770,12.3453,139.6,139.55,84.65576303]
[1724992516972,3.5825,139.56,139.49,1.3026]
[1724992517165,10.98,139.58,139.5,2.94776577]
[1724992517473,0.05065636,139.55,139.53,0.04942582]
[1724992517673,0.05065636,139.55,139.54,2.94776577]
[1724992517863,0.05065636,139.55,139.53,2.99719159]
[1724992519073,0.05065636,139.55,139.53,13.97719159]